{"text_format":"1","workbook":"xlsx","n_sheets":14,"sheets":["Main","يناير","فبراير","مارس","إبريل","مايو","يونيو","يوليو","أغسطس","سبتمبر","أكنوبر","نوفمبر","ديسمبر","Setting"],"not_rendered":{"charts":0,"images":0,"macros":1,"external_links":0,"defined_names":3,"comments":0,"pivot_tables":0},"unopened":[],"bounds":{"document_bytes":16777216,"sheet_cells":100000,"rows_first":2000,"rows_last":500,"rows_between":2000,"halvings":0,"cell_chars":16384,"cell_head_chars":4096},"cells_cut":0,"cells_raw":0,"read":"whole","date_system":"1900"}

{"sheet":"Main","index":0,"n_rows":21,"n_cols":11,"rows_kept":21,"cut":false,"hidden":false,"merged":[]}
[]
[null,null,"التاريخ","2018-07-01"]
[]
["التاريخ","إسم العميل","إسم الصنف","الكمية","السعر","القيمة"]
[{"$f":"IF(B5=\"\",\"\",$D$2)","v":""},null,null,null,{"$f":"IFERROR(VLOOKUP(C5,Setting!$C$2:$D$18,2,0),\"\")","v":""},{"$f":"IF(D5=\"\",\"\",(D5*E5))","v":""}]
[{"$f":"IF(B6=\"\",\"\",$D$2)","v":""},null,null,null,{"$f":"IFERROR(VLOOKUP(C6,Setting!$C$2:$D$18,2,0),\"\")","v":""},{"$f":"IF(D6=\"\",\"\",(D6*E6))","v":""},null,null,null,null,{"$f":"IFERROR(VLOOKUP(H6,$B$6:$C$11,2,0),\"\")","v":""}]
["",null,null,null,{"$f":"IFERROR(VLOOKUP(C7,Setting!$C$2:$D$18,2,0),\"\")","v":""},"",null,null,null,null,{"$f":"IFERROR(VLOOKUP(H7,$B$6:$C$11,2,0),\"\")","v":""}]
["",null,null,null,{"$f":"IFERROR(VLOOKUP(C8,Setting!$C$2:$D$18,2,0),\"\")","v":""},"",null,null,null,null,""]
["",null,null,null,{"$f":"IFERROR(VLOOKUP(C9,Setting!$C$2:$D$18,2,0),\"\")","v":""},"",null,null,null,null,""]
["",null,null,null,{"$f":"IFERROR(VLOOKUP(C10,Setting!$C$2:$D$18,2,0),\"\")","v":""},""]
["",null,null,null,{"$f":"IFERROR(VLOOKUP(C11,Setting!$C$2:$D$18,2,0),\"\")","v":""},""]
["",null,null,null,{"$f":"IFERROR(VLOOKUP(C12,Setting!$C$2:$D$18,2,0),\"\")","v":""},""]
["",null,null,null,{"$f":"IFERROR(VLOOKUP(C13,Setting!$C$2:$D$18,2,0),\"\")","v":""},""]
["",null,null,null,{"$f":"IFERROR(VLOOKUP(C14,Setting!$C$2:$D$18,2,0),\"\")","v":""},""]
["",null,null,null,{"$f":"IFERROR(VLOOKUP(C15,Setting!$C$2:$D$18,2,0),\"\")","v":""},""]
["",null,null,null,{"$f":"IFERROR(VLOOKUP(C16,Setting!$C$2:$D$18,2,0),\"\")","v":""},""]
["",null,null,null,{"$f":"IFERROR(VLOOKUP(C17,Setting!$C$2:$D$18,2,0),\"\")","v":""},""]
["",null,null,null,{"$f":"IFERROR(VLOOKUP(C18,Setting!$C$2:$D$18,2,0),\"\")","v":""},""]
["",null,null,null,{"$f":"IFERROR(VLOOKUP(C19,Setting!$C$2:$D$18,2,0),\"\")","v":""},""]
["",null,null,null,{"$f":"IFERROR(VLOOKUP(C20,Setting!$C$2:$D$18,2,0),\"\")","v":""},""]
["",null,null,null,{"$f":"IFERROR(VLOOKUP(C21,Setting!$C$2:$D$18,2,0),\"\")","v":""},""]

{"sheet":"يناير","index":1,"n_rows":18,"n_cols":6,"rows_kept":18,"cut":false,"hidden":false,"merged":[]}
["التاريخ","إسم العميل","إسم الصنف","الكمية","السعر","القيمة"]
["2018-01-01","ahmed","hhhhhh",1,2,2]
["2018-01-01","فكرى صالح","سجادة عجمى 3X5",2,2100,4200]
["2018-01-01","أحمد محمود","طبق بلاستيك كبير",1,85,85]
[null,null,null,null,null,{"$f":"IF(D5=\"\",\"\",(D5*E5))","v":""}]
[null,null,null,null,null,""]
[null,null,null,null,null,""]
[null,null,null,null,null,""]
[null,null,null,null,null,""]
[null,null,null,null,null,""]
[null,null,null,null,null,""]
[null,null,null,null,null,""]
[null,null,null,null,null,""]
[null,null,null,null,null,""]
[null,null,null,null,null,""]
[null,null,null,null,null,""]
[null,null,null,null,null,""]
[null,null,null,null,null,""]

{"sheet":"فبراير","index":2,"n_rows":18,"n_cols":6,"rows_kept":18,"cut":false,"hidden":false,"merged":[]}
["التاريخ","إسم العميل","إسم الصنف","الكمية","السعر","القيمة"]
["2018-02-01","أحمد محمود","سجادة عجمى 3X5",1,2100,2100]
[null,null,null,null,null,{"$f":"IF(D3=\"\",\"\",(D3*E3))","v":""}]
[null,null,null,null,null,""]
[null,null,null,null,null,""]
[null,null,null,null,null,""]
[null,null,null,null,null,""]
[null,null,null,null,null,""]
[null,null,null,null,null,""]
[null,null,null,null,null,""]
[null,null,null,null,null,""]
[null,null,null,null,null,""]
[null,null,null,null,null,""]
[null,null,null,null,null,""]
[null,null,null,null,null,""]
[null,null,null,null,null,""]
[null,null,null,null,null,""]
[null,null,null,null,null,""]

{"sheet":"مارس","index":3,"n_rows":18,"n_cols":6,"rows_kept":18,"cut":false,"hidden":false,"merged":[]}
["التاريخ","إسم العميل","إسم الصنف","الكمية","السعر","القيمة"]
["2018-03-01","فكرى صالح","طبق بلاستيك كبير",2,85,170]
["2018-03-01","أحمد محمود","مكنسة كهربائية باناسونيك 1000 وات",1,2900,2900]
[null,null,null,null,null,{"$f":"IF(D4=\"\",\"\",(D4*E4))","v":""}]
[null,null,null,null,null,""]
[null,null,null,null,null,""]
[null,null,null,null,null,""]
[null,null,null,null,null,""]
[null,null,null,null,null,""]
[null,null,null,null,null,""]
[null,null,null,null,null,""]
[null,null,null,null,null,""]
[null,null,null,null,null,""]
[null,null,null,null,null,""]
[null,null,null,null,null,""]
[null,null,null,null,null,""]
[null,null,null,null,null,""]
[null,null,null,null,null,""]

{"sheet":"إبريل","index":4,"n_rows":18,"n_cols":6,"rows_kept":18,"cut":false,"hidden":false,"merged":[]}
["التاريخ","إسم العميل","إسم الصنف","الكمية","السعر","القيمة"]
[null,null,null,null,null,{"$f":"IF(D2=\"\",\"\",(D2*E2))","v":""}]
[null,null,null,null,null,{"$f":"IF(D3=\"\",\"\",(D3*E3))","v":""}]
[null,null,null,null,null,""]
[null,null,null,null,null,""]
[null,null,null,null,null,""]
[null,null,null,null,null,""]
[null,null,null,null,null,""]
[null,null,null,null,null,""]
[null,null,null,null,null,""]
[null,null,null,null,null,""]
[null,null,null,null,null,""]
[null,null,null,null,null,""]
[null,null,null,null,null,""]
[null,null,null,null,null,""]
[null,null,null,null,null,""]
[null,null,null,null,null,""]
[null,null,null,null,null,""]

{"sheet":"مايو","index":5,"n_rows":18,"n_cols":6,"rows_kept":18,"cut":false,"hidden":false,"merged":[]}
["التاريخ","إسم العميل","إسم الصنف","الكمية","السعر","القيمة"]
[null,null,null,null,null,{"$f":"IF(D2=\"\",\"\",(D2*E2))","v":""}]
[null,null,null,null,null,{"$f":"IF(D3=\"\",\"\",(D3*E3))","v":""}]
[null,null,null,null,null,""]
[null,null,null,null,null,""]
[null,null,null,null,null,""]
[null,null,null,null,null,""]
[null,null,null,null,null,""]
[null,null,null,null,null,""]
[null,null,null,null,null,""]
[null,null,null,null,null,""]
[null,null,null,null,null,""]
[null,null,null,null,null,""]
[null,null,null,null,null,""]
[null,null,null,null,null,""]
[null,null,null,null,null,""]
[null,null,null,null,null,""]
[null,null,null,null,null,""]

{"sheet":"يونيو","index":6,"n_rows":18,"n_cols":6,"rows_kept":18,"cut":false,"hidden":false,"merged":[]}
["التاريخ","إسم العميل","إسم الصنف","الكمية","السعر","القيمة"]
[null,null,null,null,null,{"$f":"IF(D2=\"\",\"\",(D2*E2))","v":""}]
[null,null,null,null,null,{"$f":"IF(D3=\"\",\"\",(D3*E3))","v":""}]
[null,null,null,null,null,""]
[null,null,null,null,null,""]
[null,null,null,null,null,""]
[null,null,null,null,null,""]
[null,null,null,null,null,""]
[null,null,null,null,null,""]
[null,null,null,null,null,""]
[null,null,null,null,null,""]
[null,null,null,null,null,""]
[null,null,null,null,null,""]
[null,null,null,null,null,""]
[null,null,null,null,null,""]
[null,null,null,null,null,""]
[null,null,null,null,null,""]
[null,null,null,null,null,""]

{"sheet":"يوليو","index":7,"n_rows":18,"n_cols":6,"rows_kept":18,"cut":false,"hidden":false,"merged":[]}
["التاريخ","إسم العميل","إسم الصنف","الكمية","السعر","القيمة"]
["2018-07-01","فوزى الدكش","مروحة بوكس فريش",1,210,210]
[null,null,null,null,null,{"$f":"IF(D3=\"\",\"\",(D3*E3))","v":""}]
[null,null,null,null,null,""]
[null,null,null,null,null,""]
[null,null,null,null,null,""]
[null,null,null,null,null,""]
[null,null,null,null,null,""]
[null,null,null,null,null,""]
[null,null,null,null,null,""]
[null,null,null,null,null,""]
[null,null,null,null,null,""]
[null,null,null,null,null,""]
[null,null,null,null,null,""]
[null,null,null,null,null,""]
[null,null,null,null,null,""]
[null,null,null,null,null,""]
[null,null,null,null,null,""]

{"sheet":"أغسطس","index":8,"n_rows":18,"n_cols":6,"rows_kept":18,"cut":false,"hidden":false,"merged":[]}
["التاريخ","إسم العميل","إسم الصنف","الكمية","السعر","القيمة"]
[null,null,null,null,null,{"$f":"IF(D2=\"\",\"\",(D2*E2))","v":""}]
[null,null,null,null,null,{"$f":"IF(D3=\"\",\"\",(D3*E3))","v":""}]
[null,null,null,null,null,""]
[null,null,null,null,null,""]
[null,null,null,null,null,""]
[null,null,null,null,null,""]
[null,null,null,null,null,""]
[null,null,null,null,null,""]
[null,null,null,null,null,""]
[null,null,null,null,null,""]
[null,null,null,null,null,""]
[null,null,null,null,null,""]
[null,null,null,null,null,""]
[null,null,null,null,null,""]
[null,null,null,null,null,""]
[null,null,null,null,null,""]
[null,null,null,null,null,""]

{"sheet":"سبتمبر","index":9,"n_rows":18,"n_cols":6,"rows_kept":18,"cut":false,"hidden":false,"merged":[]}
["التاريخ","إسم العميل","إسم الصنف","الكمية","السعر","القيمة"]
[null,null,null,null,null,{"$f":"IF(D2=\"\",\"\",(D2*E2))","v":""}]
[null,null,null,null,null,{"$f":"IF(D3=\"\",\"\",(D3*E3))","v":""}]
[null,null,null,null,null,""]
[null,null,null,null,null,""]
[null,null,null,null,null,""]
[null,null,null,null,null,""]
[null,null,null,null,null,""]
[null,null,null,null,null,""]
[null,null,null,null,null,""]
[null,null,null,null,null,""]
[null,null,null,null,null,""]
[null,null,null,null,null,""]
[null,null,null,null,null,""]
[null,null,null,null,null,""]
[null,null,null,null,null,""]
[null,null,null,null,null,""]
[null,null,null,null,null,""]

{"sheet":"أكنوبر","index":10,"n_rows":18,"n_cols":6,"rows_kept":18,"cut":false,"hidden":false,"merged":[]}
["التاريخ","إسم العميل","إسم الصنف","الكمية","السعر","القيمة"]
[null,null,null,null,null,{"$f":"IF(D2=\"\",\"\",(D2*E2))","v":""}]
[null,null,null,null,null,{"$f":"IF(D3=\"\",\"\",(D3*E3))","v":""}]
[null,null,null,null,null,""]
[null,null,null,null,null,""]
[null,null,null,null,null,""]
[null,null,null,null,null,""]
[null,null,null,null,null,""]
[null,null,null,null,null,""]
[null,null,null,null,null,""]
[null,null,null,null,null,""]
[null,null,null,null,null,""]
[null,null,null,null,null,""]
[null,null,null,null,null,""]
[null,null,null,null,null,""]
[null,null,null,null,null,""]
[null,null,null,null,null,""]
[null,null,null,null,null,""]

{"sheet":"نوفمبر","index":11,"n_rows":18,"n_cols":6,"rows_kept":18,"cut":false,"hidden":false,"merged":[]}
["التاريخ","إسم العميل","إسم الصنف","الكمية","السعر","القيمة"]
[null,null,null,null,null,{"$f":"IF(D2=\"\",\"\",(D2*E2))","v":""}]
[null,null,null,null,null,{"$f":"IF(D3=\"\",\"\",(D3*E3))","v":""}]
[null,null,null,null,null,""]
[null,null,null,null,null,""]
[null,null,null,null,null,""]
[null,null,null,null,null,""]
[null,null,null,null,null,""]
[null,null,null,null,null,""]
[null,null,null,null,null,""]
[null,null,null,null,null,""]
[null,null,null,null,null,""]
[null,null,null,null,null,""]
[null,null,null,null,null,""]
[null,null,null,null,null,""]
[null,null,null,null,null,""]
[null,null,null,null,null,""]
[null,null,null,null,null,""]

{"sheet":"ديسمبر","index":12,"n_rows":18,"n_cols":6,"rows_kept":18,"cut":false,"hidden":false,"merged":[]}
["التاريخ","إسم العميل","إسم الصنف","الكمية","السعر","القيمة"]
[null,null,null,null,null,{"$f":"IF(D2=\"\",\"\",(D2*E2))","v":""}]
[null,null,null,null,null,{"$f":"IF(D3=\"\",\"\",(D3*E3))","v":""}]
[null,null,null,null,null,""]
[null,null,null,null,null,""]
[null,null,null,null,null,""]
[null,null,null,null,null,""]
[null,null,null,null,null,""]
[null,null,null,null,null,""]
[null,null,null,null,null,""]
[null,null,null,null,null,""]
[null,null,null,null,null,""]
[null,null,null,null,null,""]
[null,null,null,null,null,""]
[null,null,null,null,null,""]
[null,null,null,null,null,""]
[null,null,null,null,null,""]
[null,null,null,null,null,""]

{"sheet":"Setting","index":13,"n_rows":18,"n_cols":4,"rows_kept":18,"cut":false,"hidden":true,"merged":[]}
[null,"العملاء","الأصناف","الأسعار"]
[1,"فكرى صالح","سجادة عجمى 3X5",2100]
[2,"أحمد محمود","طبق بلاستيك كبير",85]
[3,"فوزى الدكش","مروحة بوكس فريش",210]
[4,"يوسف المواردى","مروحة سقف ناشيونال",260]
[5,"عطية فرغلى","مكنسة كهربائية باناسونيك 1000 وات",2900]
[6,"متولى عبود","ثلاجة 14 قدم سامسونج",3600]
[7,"على عبد المقصود","تليفزيون 32 بوصة -ال سى دى",3700]
[8,"محمد عويس","تليفزيون 47 بوصة -ال سى دى",4800]
[9,"سرحان لطفى","مروحة استاند فريش-18 بوصة",300]
[10,"سعيد الجناينى","غسالة فوق أوتوماتيك 8 كيلو",5400]
[11,"توفيق على","غسالة أطباق سامسونج",3800]
[12,"رجب رمضان","غسالة أوتوماتيك إل جى 8 كيلو",7050]
[13,"محمود الزناتى","غسالة أوتوماتيك سامسونج 6 كيلو",6100]
[14,"عيد عبد القادر","تليفزيون 47 بوصة -ال إى دى",5400]
[15,"صلاح عبد الحميد"]
[16,"محمد غريب"]
[17,"سراج منير"]